fUSD/lending_fUSD_20260314
["ID","MTS","AMOUNT","RATE_DAILY","PERIOD"]
[408347461,1773474641376,-244.578629,0.00019544,2]
[408347462,1773474641385,-244.578629,0.00019544,2]
[408347463,1773474641394,-244.578629,0.00019544,2]
[408347464,1773474641402,-244.578629,0.00019544,2]
[408347465,1773474641411,-520.0,0.00019544,2]
[408347466,1773474641420,-500.0,0.00019544,2]
[408347467,1773474641429,-455.0,0.00019544,2]
[408347468,1773474641439,-224.76563297,0.00019544,2]
[408347469,1773474641448,-827.0,0.00019544,2]
[408347470,1773474641457,-597.0,0.00019544,2]
[408347471,1773474641467,-150.0,0.00019544,2]
[408347472,1773474641476,-500.0,0.00019544,2]
[408347473,1773474641486,-500.0,0.00019544,2]
[408347474,1773474641496,-500.0,0.00019544,2]
[408347475,1773474641505,-500.0,0.00019544,2]
[408347476,1773474641515,-150.0,0.00019544,2]
[408347477,1773474641524,-500.0,0.00019544,2]
[408347478,1773474641533,-442.0,0.00019544,2]
[408347479,1773474641542,-500.0,0.00019544,2]
[408347480,1773474641551,-5042.84201424,0.00019558,2]
[408347481,1773474641561,-196.12889,0.00019558,2]
[408347482,1773474641570,-181.08010149,0.0001958,2]
[408347483,1773474641579,-500.0,0.0001959,2]
[408347484,1773474641589,-500.0,0.0001959,2]
[408347485,1773474641598,-500.0,0.0001959,2]
[408347486,1773474641608,-473.37332411,0.0001959,2]
[408347487,1773474641617,-535.0,0.0001959,2]
[408347488,1773474641627,-500.0,0.0001959,2]
[408347489,1773474641636,-500.0,0.00019599,2]
[408347490,1773474641645,-500.0,0.00019599,2]
[408347491,1773474641654,-150.0,0.00019599,2]
[408347492,1773474641664,-500.0,0.00019599,2]
[408347493,1773474641673,-500.0,0.00019599,2]
[408347494,1773474641682,-150.0,0.00019599,2]
[408347495,1773474641692,-500.0,0.00019599,2]
[408347496,1773474641701,-500.0,0.00019599,2]
[408347497,1773474641710,-500.0,0.00019599,2]
[408347498,1773474641719,-150.0,0.00019599,2]
[408347499,1773474641728,-150.0,0.00019599,2]
[408347500,1773474641738,-767.42,0.00019599,2]
[408347501,1773474641747,-520.0,0.00019599,2]
[408347502,1773474641756,-291.58912981,0.00019599,2]
[408347503,1773474641765,-455.0,0.00019599,2]
[408347504,1773474641774,-827.0,0.00019599,2]
[408347505,1773474641784,-597.0,0.00019599,2]
[408347506,1773474641793,-164.27578096,0.00019599,2]
[408347507,1773474641803,-500.0,0.00019599,2]
[408347508,1773474641812,-467.21851997,0.00019599,2]
[408347509,1773474641821,-500.0,0.00019599,2]
[408347510,1773474641831,-500.0,0.00019599,2]
[408347511,1773474641840,-154.69016967,0.00019599,2]
[408347512,1773474641849,-445.82795208,0.00019599,2]
[408347513,1773474641859,-442.0,0.00019599,2]
[408347514,1773474641867,-500.0,0.00019599,2]
[408347515,1773474641877,-5807.93831896,0.00019607,2]
[408347516,1773474641886,-1001.83521005,0.00019621,2]
[408347517,1773474641895,-1001.87754814,0.00019621,2]
[408347518,1773474641905,-1000.0,0.00019621,2]
[408347519,1773474641914,-1000.40770532,0.00019621,2]
[408347520,1773474641923,-500.0,0.00019621,2]
[408347521,1773474641932,-535.90597519,0.00019621,2]
[408347522,1773474641941,-151.0,0.00019629,2]
[408347523,1773474641950,-1612.790701,0.00019629,2]
[408347524,1773474641960,-1612.790701,0.00019629,2]
[408347525,1773474641969,-1612.790701,0.00019629,2]
[408347526,1773474641979,-1612.790701,0.00019629,2]
[408347527,1773474641988,-371.212179,0.00019629,2]
[408347528,1773474642002,-371.212179,0.00019629,2]
[408347529,1773474642011,-371.212179,0.00019629,2]
[408347530,1773474642020,-371.212179,0.00019629,2]
[408347531,1773474642031,-244.578629,0.00019629,2]
[408347532,1773474642040,-244.578629,0.00019629,2]
[408347533,1773474642049,-244.578629,0.00019629,2]
[408347534,1773474642058,-244.578629,0.00019629,2]
[408347535,1773474642068,-231388.03692032,0.0001963,2]
[408347536,1773474642079,-151.0,0.0001963,2]
[408347537,1773474642088,-1612.790701,0.0001963,2]
[408347538,1773474642098,-1612.790701,0.0001963,2]
[408347539,1773474642108,-1612.790701,0.0001963,2]
[408347540,1773474642117,-1612.790701,0.0001963,2]
[408347541,1773474642127,-371.212179,0.0001963,2]
[408347542,1773474642136,-371.212179,0.0001963,2]
[408347543,1773474642146,-371.212179,0.0001963,2]
[408347544,1773474642156,-371.212179,0.0001963,2]
[408347545,1773474642165,-244.578629,0.0001963,2]
[408347546,1773474642174,-244.578629,0.0001963,2]
[408347547,1773474642183,-244.578629,0.0001963,2]
[408347548,1773474642192,-244.578629,0.0001963,2]
[408347549,1773474642202,-196.12889,0.0001963,2]
[408347550,1773474642212,-500.0,0.00019644,2]
[408347551,1773474642222,-500.0,0.00019645,2]
[408347552,1773474642232,-500.0,0.00019645,2]
[408347553,1773474642243,-535.0,0.00019645,2]
[408347554,1773474642252,-500.0,0.00019645,2]
[408347555,1773474642261,-500.0,0.00019654,2]
[408347556,1773474642271,-500.0,0.00019654,2]
[408347557,1773474642281,-259.12953313,0.00019654,2]
[408347558,1773474642291,-600.0,0.00019654,2]
[408347559,1773474642300,-500.0,0.00019654,2]
[408347560,1773474642310,-150.0,0.00019654,2]
[408347561,1773474642319,-500.0,0.00019654,2]
[408347562,1773474642328,-500.0,0.00019654,2]
[408347563,1773474642338,-500.0,0.00019654,2]
[408347564,1773474642347,-150.0,0.00019654,2]
[408347565,1773474642356,-150.0,0.00019654,2]
[408347566,1773474642366,-520.0,0.00019654,2]
[408347567,1773474642375,-455.0,0.00019654,2]
[408347568,1773474642385,-827.0,0.00019654,2]
[408347569,1773474642395,-597.0,0.00019654,2]
[408347570,1773474642404,-500.0,0.00019654,2]
[408347571,1773474642414,-500.0,0.00019654,2]
[408347572,1773474642423,-500.0,0.00019654,2]
[408347573,1773474642432,-442.0,0.00019654,2]
[408347574,1773474642443,-352.45508151,0.00019654,2]
[408347575,1773474642453,-5042.84201424,0.00019672,2]
[408347576,1773474642462,-500.37959785,0.00019673,2]
[408347577,1773474642471,-500.0,0.00019673,2]
[408347578,1773474642480,-500.0,0.00019673,2]
[408347579,1773474642491,-161.9986597,0.00019673,2]
[408347580,1773474642501,-500.0,0.00019673,2]
[408347581,1773474642511,-500.0,0.00019673,2]
[408347582,1773474642520,-500.0,0.00019673,2]
[408347583,1773474642529,-500.0,0.00019673,2]
[408347584,1773474642539,-160.45780155,0.00019673,2]
[408347585,1773474642549,-151.0,0.00019684,2]
[408347586,1773474642558,-467.748827,0.00019687,2]
[408347587,1773474642568,-235.786504,0.00019687,2]
[408347588,1773474642577,-467.748827,0.00019687,2]
[408347589,1773474642587,-235.786504,0.00019687,2]
[408347590,1773474642596,-235.786504,0.00019687,2]
[408347591,1773474642605,-467.748827,0.00019687,2]
[408347592,1773474642614,-235.786504,0.00019687,2]
[408347593,1773474642624,-467.748827,0.00019687,2]
[408347594,1773474642633,-1195.989696,0.00019687,2]
[408347595,1773474642642,-1195.989696,0.00019687,2]
[408347596,1773474642652,-1195.989696,0.00019687,2]
[408347597,1773474642662,-1195.989696,0.00019687,2]
[408347598,1773474642672,-214.4726611,0.00019699,2]
[408347599,1773474642682,-270.51029296,0.00019699,2]
[408347600,1773474642692,-500.0,0.00019699,2]
[408347601,1773474642702,-535.0,0.00019699,2]
[408347602,1773474642712,-500.0,0.000197,2]
[408347603,1773474642722,-2032.0,0.000197,2]
[408347604,1773474642731,-2000.0,0.000197,2]
[408347605,1773474642742,-2070.0,0.000197,2]
[408347606,1773474642751,-500.0,0.00019709,2]
[408347607,1773474642760,-500.0,0.00019709,2]
[408347608,1773474642770,-500.0,0.00019709,2]
[408347609,1773474642779,-203.71407246,0.00019709,2]
[408347610,1773474642788,-235.75427857,0.00019709,2]
[408347611,1773474642798,-500.0,0.00019709,2]
[408347612,1773474642807,-500.0,0.00019709,2]
[408347613,1773474642816,-180.50767738,0.00019709,2]
[408347614,1773474642825,-150.0,0.00019709,2]
[408347615,1773474642834,-520.0,0.00019709,2]
[408347616,1773474642844,-455.0,0.00019709,2]
[408347617,1773474642853,-827.0,0.00019709,2]
[408347618,1773474642862,-597.0,0.00019709,2]
[408347619,1773474642871,-500.0,0.00019709,2]
[408347620,1773474642881,-500.0,0.00019709,2]
[408347621,1773474642889,-500.0,0.00019709,2]
[408347622,1773474642900,-442.0,0.00019709,2]
[408347623,1773474642909,-298.105305,0.00019709,2]
[408347624,1773474642920,-1612.790701,0.00019709,2]
[408347625,1773474642930,-1612.790701,0.00019709,2]
[408347626,1773474642939,-1612.790701,0.00019709,2]
[408347627,1773474642949,-1612.790701,0.00019709,2]
[408347628,1773474642960,-371.212179,0.00019729,2]
[408347629,1773474642971,-371.212179,0.00019729,2]
[408347630,1773474642980,-371.212179,0.00019729,2]
[408347631,1773474642992,-371.212171,0.00019729,2]
[408347632,1773474643006,-244.578629,0.00019729,2]
[408347633,1773474643017,-244.578629,0.00019729,2]
[408347634,1773474643027,-244.578629,0.00019729,2]
[408347635,1773474643039,-244.578633,0.00019729,2]
[408347636,1773474643049,-467.748827,0.00019751,2]
[408347637,1773474643058,-235.786504,0.00019751,2]
[408347638,1773474643069,-467.748827,0.00019751,2]
[408347639,1773474643078,-235.786504,0.00019751,2]
[408347640,1773474643087,-235.786504,0.00019751,2]
[408347641,1773474643097,-467.748827,0.00019751,2]
[408347642,1773474643107,-235.786504,0.00019751,2]
[408347643,1773474643116,-467.748827,0.00019751,2]
[408347644,1773474643126,-1195.989696,0.00019751,2]
[408347645,1773474643136,-1195.989696,0.00019751,2]
[408347646,1773474643145,-1195.989696,0.00019751,2]
[408347647,1773474643155,-1195.989696,0.00019751,2]
[408347648,1773474643165,-782.34,0.00019753,2]
[408347649,1773474643174,-5807.93831896,0.00019753,2]
[408347650,1773474643184,-572.86032747,0.00019754,2]
[408347651,1773474643194,-535.0,0.00019754,2]
[408347652,1773474643204,-500.0,0.00019754,2]
[408347653,1773474643214,-250.0,0.00019762,2]
[408347654,1773474643223,-500.0,0.00019763,2]
[408347655,1773474643233,-550.77702201,0.00019763,2]
[408347656,1773474643243,-641.19114588,0.00019763,2]
[408347657,1773474643253,-500.0,0.00019763,2]
[408347658,1773474643263,-310.09652886,0.00019763,2]
[408347659,1773474643272,-150.0,0.00019763,2]
[408347660,1773474643282,-520.0,0.00019764,2]
[408347661,1773474643291,-455.0,0.00019764,2]
[408347662,1773474643301,-827.0,0.00019764,2]
[408347663,1773474643310,-597.0,0.00019764,2]
[408347664,1773474643319,-500.0,0.00019764,2]
[408347665,1773474643332,-500.0,0.00019764,2]
[408347666,1773474643341,-500.0,0.00019764,2]
[408347667,1773474643351,-442.0,0.00019764,2]
[408347668,1773474643360,-500.0,0.00019764,2]
[408347669,1773474643369,-169.17535368,0.00019773,2]
[408347670,1773474643379,-546.8831351,0.00019773,2]
[408347671,1773474643388,-500.0,0.00019773,2]
[408347672,1773474643397,-5042.84201424,0.00019786,2]
[408347673,1773474643407,-1612.790701,0.00019789,2]
[408347674,1773474643416,-1612.790701,0.00019789,2]
[408347675,1773474643425,-1612.790701,0.00019789,2]
[408347676,1773474643435,-1612.790701,0.00019789,2]
[408347677,1773474643444,-467.748827,0.00019799,2]
[408347678,1773474643453,-235.786504,0.00019799,2]
[408347679,1773474643462,-467.748827,0.00019799,2]
[408347680,1773474643471,-235.786504,0.00019799,2]
[408347681,1773474643481,-235.786504,0.00019799,2]
[408347682,1773474643490,-467.748827,0.00019799,2]
[408347683,1773474643499,-235.786504,0.00019799,2]
[408347684,1773474643509,-467.748827,0.00019799,2]
[408347685,1773474643518,-1195.989696,0.00019799,2]
[408347686,1773474643528,-1195.989696,0.00019799,2]
[408347687,1773474643538,-1195.989696,0.00019799,2]
[408347688,1773474643549,-1195.989696,0.00019799,2]
[408347689,1773474643558,-500.0,0.00019799,2]
[408347690,1773474643568,-502.52952574,0.00019799,2]
[408347691,1773474643578,-500.0,0.00019799,2]
[408347692,1773474643587,-47985.9525,0.000198,2]
[408347693,1773474643597,-151.0,0.000198,2]
[408347694,1773474643732,-467.748827,0.000198,2]
[408347695,1773474643743,-235.786504,0.000198,2]
[408347696,1773474643752,-467.748827,0.000198,2]
[408347697,1773474643763,-235.786504,0.000198,2]
[408347698,1773474643773,-235.786504,0.000198,2]
[408347699,1773474643783,-467.748827,0.000198,2]
[408347701,1773474643792,-235.786504,0.000198,2]
[408347702,1773474643801,-467.748827,0.000198,2]
[408347703,1773474643811,-1505.00324,0.000198,2]
[408347704,1773474643820,-1505.00325,0.000198,2]
[408347705,1773474643829,-1195.989696,0.000198,2]
[408347706,1773474643839,-1195.989696,0.000198,2]
[408347707,1773474643848,-1195.989696,0.000198,2]
[408347708,1773474643857,-1195.989696,0.000198,2]
[408347709,1773474643868,-2000.0,0.000198,2]
[408347710,1773474643877,-151.0,0.00019807,2]
[408347711,1773474643886,-1000.0,0.00019808,2]
[408347712,1773474643896,-151.0,0.00019808,2]
[408347713,1773474643906,-500.0,0.00019808,2]
[408347714,1773474643917,-557.732875,0.00019808,2]
[408347715,1773474643927,-557.732875,0.00019808,2]
[408347716,1773474643936,-557.732875,0.00019808,2]
[408347718,1773474643946,-500.0,0.00019808,2]
[408347720,1773474643955,-557.732875,0.00019808,2]
[408347721,1773474643964,-151.0,0.00019808,2]
[408347722,1773474643974,-151.0,0.00019808,2]
[408347723,1773474643985,-758.271408,0.00019808,2]
[408347724,1773474643997,-758.271408,0.00019808,2]
[408347725,1773474644007,-758.271408,0.00019808,2]
[408347726,1773474644016,-758.271408,0.00019808,2]
[408347727,1773474644026,-151.0,0.00019808,2]
[408347728,1773474644036,-500.0,0.00019808,2]
[408347729,1773474644045,-151.0,0.00019808,2]
[408347730,1773474644054,-151.0,0.00019808,2]
[408347731,1773474644063,-151.0,0.00019808,2]
[408347732,1773474644074,-151.0,0.00019808,2]
[408347733,1773474644083,-151.0,0.00019808,2]
[408347734,1773474644093,-151.0,0.00019808,2]
[408347735,1773474644102,-500.0,0.00019808,2]
[408347736,1773474644112,-500.0,0.00019808,2]
[408347737,1773474644122,-1612.790701,0.00019808,2]
[408347738,1773474644132,-1612.790701,0.00019808,2]
[408347739,1773474644142,-1612.790701,0.00019808,2]
[408347740,1773474644152,-1612.79071,0.00019808,2]
[408347741,1773474644162,-535.0,0.00019809,2]
[408347742,1773474644171,-500.0,0.00019809,2]
[408347743,1773474644181,-557.732875,0.00019818,2]
[408347744,1773474644191,-557.732875,0.00019818,2]
[408347745,1773474644201,-557.732875,0.00019818,2]
[408347746,1773474644210,-557.732875,0.00019818,2]
[408347747,1773474644220,-151.0,0.00019818,2]
[408347748,1773474644229,-151.0,0.00019818,2]
[408347749,1773474644239,-758.271408,0.00019818,2]
[408347750,1773474644249,-758.271408,0.00019818,2]
[408347751,1773474644258,-758.271408,0.00019818,2]
[408347752,1773474644267,-758.271408,0.00019818,2]
[408347753,1773474644277,-151.0,0.00019818,2]
[408347754,1773474644286,-151.0,0.00019818,2]
[408347755,1773474644295,-151.0,0.00019818,2]
[408347756,1773474644305,-467.748827,0.00019818,2]
[408347757,1773474644315,-235.786504,0.00019818,2]
[408347758,1773474644324,-467.748827,0.00019818,2]
[408347759,1773474644334,-235.786504,0.00019818,2]
[408347760,1773474644344,-235.786504,0.00019818,2]
[408347761,1773474644354,-467.748827,0.00019818,2]
[408347762,1773474644364,-235.786496,0.00019818,2]
[408347763,1773474644375,-467.748828,0.00019818,2]
[408347764,1773474644384,-1195.989696,0.00019818,2]
[408347765,1773474644393,-1195.989696,0.00019818,2]
[408347766,1773474644403,-1195.989696,0.00019818,2]
[408347767,1773474644412,-1195.989705,0.00019818,2]
[408347768,1773474644421,-500.0,0.00019818,2]
[408347769,1773474644431,-500.0,0.00019818,2]
[408347770,1773474644440,-150.0,0.00019818,2]
[408347771,1773474644450,-520.0,0.00019818,2]
[408347772,1773474644460,-455.0,0.00019818,2]
[408347773,1773474644469,-827.0,0.00019818,2]
[408347774,1773474644479,-597.0,0.00019818,2]
[408347775,1773474644488,-500.0,0.00019818,2]
[408347776,1773474644497,-500.0,0.00019818,2]
[408347777,1773474644507,-500.0,0.00019818,2]
[408347778,1773474644517,-442.0,0.00019818,2]
[408347779,1773474644526,-151.0,0.00019821,2]
[408347780,1773474644535,-150.0,0.00019822,2]
[408347781,1773474644545,-150.0,0.00019822,2]
[408347782,1773474644554,-278.94492508,0.00019822,2]
[408347783,1773474644564,-151.0,0.00019829,2]
[408347784,1773474644574,-200.0,0.00019829,2]
[408347785,1773474644583,-200.0,0.00019829,2]
[408347786,1773474644593,-287.61899177,0.00019829,2]
[408347787,1773474644602,-4834.0,0.00019841,2]
[408347788,1773474644611,-151.0,0.00019863,2]
[408347789,1773474644621,-153.235213,0.00019863,2]
[408347790,1773474644630,-151.0,0.00019863,2]
[408347791,1773474644639,-151.0,0.00019863,2]
[408347792,1773474644649,-557.732875,0.00019863,2]
[408347793,1773474644659,-557.732875,0.00019863,2]
[408347794,1773474644669,-557.732875,0.00019863,2]
[408347795,1773474644678,-557.732875,0.00019863,2]
[408347796,1773474644688,-151.0,0.00019863,2]
[408347797,1773474644697,-179.30828,0.00019863,2]
[408347798,1773474644707,-758.271408,0.00019863,2]
[408347799,1773474644716,-758.271408,0.00019863,2]
[408347800,1773474644726,-758.271408,0.00019863,2]
[408347801,1773474644736,-758.271408,0.00019863,2]
[408347802,1773474644745,-4040.06,0.00019863,2]
[408347803,1773474644755,-535.0,0.00019864,2]
[408347804,1773474644764,-500.0,0.00019864,2]
[408347805,1773474644773,-500.0,0.00019873,2]
[408347806,1773474644783,-500.0,0.00019873,2]
[408347807,1773474644792,-500.0,0.00019873,2]
[408347808,1773474644802,-606.89168437,0.00019873,2]
[408347809,1773474644811,-500.48034664,0.00019873,2]
[408347810,1773474644821,-163.08131887,0.00019873,2]
[408347811,1773474644831,-500.0,0.00019873,2]
[408347812,1773474644840,-382.15456314,0.00019873,2]
[408347813,1773474644849,-500.0,0.00019873,2]
[408347814,1773474644858,-502.88897869,0.00019873,2]
[408347815,1773474644867,-500.0,0.00019873,2]
[408347816,1773474644878,-500.0,0.00019873,2]
[408347817,1773474644887,-500.0,0.00019873,2]
[408347818,1773474644897,-500.0,0.00019873,2]
[408347819,1773474644906,-636.31057009,0.00019873,2]
[408347820,1773474644915,-500.0,0.00019873,2]
[408347821,1773474644924,-500.0,0.00019873,2]
[408347822,1773474644934,-500.0,0.00019873,2]
[408347823,1773474644944,-150.0,0.00019873,2]
[408347824,1773474644953,-767.42,0.00019873,2]
[408347825,1773474644962,-151.0,0.00019873,2]
[408347826,1773474644972,-151.0,0.00019873,2]
[408347827,1773474644981,-242.952273,0.00019873,2]
[408347828,1773474644993,-520.0,0.00019873,2]
[408347829,1773474645004,-455.0,0.00019873,2]
[408347830,1773474645013,-827.0,0.00019873,2]
[408347831,1773474645022,-597.0,0.00019873,2]
[408347832,1773474645031,-500.0,0.00019873,2]
[408347833,1773474645044,-500.0,0.00019873,2]
[408347834,1773474645054,-500.0,0.00019873,2]
[408347835,1773474645064,-442.0,0.00019873,2]
[408347836,1773474645074,-557.732875,0.00019878,2]
[408347837,1773474645084,-557.732875,0.00019878,2]
[408347838,1773474645094,-557.732875,0.00019878,2]
[408347839,1773474645104,-557.732875,0.00019878,2]
[408347840,1773474645113,-151.0,0.00019878,2]
[408347841,1773474645122,-758.271408,0.00019878,2]
[408347842,1773474645132,-758.271408,0.00019878,2]
[408347843,1773474645142,-758.271408,0.00019878,2]
[408347844,1773474645151,-758.271408,0.00019878,2]
[408347845,1773474645161,-471.71551318,0.0001989,2]
[408347846,1773474645170,-500.0,0.00019898,2]
[408347847,1773474645179,-500.0,0.00019898,2]
[408347848,1773474645189,-4572.6934,0.00019899,2]
[408347849,1773474645198,-10000.0,0.00019899,2]
[408347850,1773474645207,-2702.605,0.00019899,2]
[408347851,1773474645216,-172.278,0.00019899,2]
[408347852,1773474645226,-500.0,0.00019899,2]
[408347853,1773474645236,-500.0,0.00019899,2]
[408347854,1773474645244,-500.0,0.00019899,2]
[408347855,1773474645254,-32942.6924,0.000199,2]
[408347856,1773474645264,-1000.0,0.000199,2]
[408347857,1773474645273,-75365.33548707,0.000199,2]
[408347858,1773474645294,-990.68643539,0.000199,2]
[408347859,1773474645306,-6713.72108542,0.000199,2]
[408347860,1773474645430,-196.12889,0.00019032,2]
[408347861,1773474645439,-500.0,0.00019073,2]
[408347862,1773474645449,-196.12889,0.00019281,2]
[408347863,1773474645458,-196.12889,0.0001938,2]
[408347864,1773474645468,-196.12889,0.0001938,2]
[408347865,1773474645477,-196.12889,0.00019558,2]
[408347866,1773474645488,-1000.0,0.00019621,2]
[408347867,1773474645499,-196.12889,0.0001963,2]
[408347868,1773474645509,-3453.54843555,0.000199,2]
[408347869,1773474645522,-687.1212615,0.000199,2]
[408347870,1773474645558,-196.12889,0.00019558,2]
[408347871,1773474645568,-12769.58729507,0.000199,2]
[408347872,1773474645577,-6079.9912,0.000199,2]
[408347873,1773474645587,-151.0,0.000199,2]
[408347874,1773474645597,-151.0,0.000199,2]
[408347875,1773474645606,-828.88506818,0.000199,2]
[408347876,1773474645616,-151.0,0.000199,2]
[408347877,1773474645625,-151.0,0.000199,2]
[408347878,1773474645635,-151.0,0.000199,2]
[408347879,1773474645644,-151.0,0.000199,2]
[408347880,1773474645653,-557.732875,0.000199,2]
[408347881,1773474645662,-557.732875,0.000199,2]
[408347882,1773474645672,-557.732875,0.000199,2]
[408347883,1773474645682,-557.732878,0.000199,2]
[408347884,1773474645692,-151.0,0.000199,2]
[408347885,1773474645701,-758.271408,0.000199,2]
[408347886,1773474645711,-758.271408,0.000199,2]
[408347887,1773474645721,-758.271408,0.000199,2]
[408347888,1773474645730,-758.271408,0.000199,2]
[408347889,1773474645740,-151.0,0.000199,2]
[408347890,1773474645749,-151.0,0.000199,2]
[408347891,1773474645759,-450.20120813,0.000199,2]
[408347892,1773474645768,-5042.84201424,0.000199,2]
[408347893,1773474645778,-5807.93831896,0.000199,2]
[408347894,1773474645787,-535.0,0.00019919,2]
[408347895,1773474645807,-500.0,0.00019919,2]
[408347896,1773474645820,-500.0,0.00019928,2]
[408347897,1773474645830,-500.0,0.00019928,2]
[408347898,1773474645840,-520.0,0.00019928,2]
[408347899,1773474645849,-455.0,0.00019928,2]
[408347900,1773474645859,-827.0,0.00019928,2]
[408347901,1773474645868,-597.0,0.00019928,2]
[408347902,1773474645878,-500.0,0.00019928,2]
[408347903,1773474645888,-500.0,0.00019928,2]
[408347904,1773474645897,-500.0,0.00019928,2]
[408347905,1773474645906,-442.0,0.00019928,2]
[408347906,1773474645916,-300.0,0.00019935,2]
[408347907,1773474645925,-666.0,0.00019935,2]
[408347908,1773474645934,-151.0,0.00019936,2]
[408347909,1773474645944,-151.0,0.00019936,2]
[408347910,1773474645953,-500.0,0.00019972,2]
[408347911,1773474645963,-500.0,0.00019972,2]
[408347912,1773474645972,-500.0,0.00019972,2]
[408347913,1773474645981,-500.0,0.00019972,2]
[408347914,1773474645996,-500.0,0.00019972,2]
[408347915,1773474646006,-439.0,0.00019973,2]
[408347916,1773474646015,-1779.0,0.00019973,2]
[408347917,1773474646024,-232.0,0.00019973,2]
[408347918,1773474646035,-5727.0,0.00019973,2]
[408347919,1773474646044,-151.0,0.00019973,2]
[408347920,1773474646053,-535.0,0.00019973,2]
[408347921,1773474646064,-500.0,0.00019974,2]
[408347922,1773474646073,-438.75555333,0.00019983,2]
[408347923,1773474646083,-520.0,0.00019983,2]
[408347924,1773474646093,-455.0,0.00019983,2]
[408347925,1773474646102,-827.0,0.00019983,2]
[408347926,1773474646111,-597.0,0.00019983,2]
[408347927,1773474646121,-500.0,0.00019983,2]
[408347928,1773474646131,-500.0,0.00019983,2]
[408347930,1773474646140,-500.0,0.00019983,2]
[408347932,1773474646149,-442.0,0.00019983,2]
[408347934,1773474646159,-471.71551318,0.0001999,2]
[408347936,1773474646169,-151.0,0.00019999,2]
[408347938,1773474646179,-151.0,0.00019999,2]
[408347939,1773474646188,-500.0,0.00019999,2]
[408347941,1773474646198,-500.0,0.00019999,2]
[408347943,1773474646207,-500.0,0.00019999,2]
[408347946,1773474646221,-500.0,0.00019999,2]
[408347948,1773474646230,-500.0,0.00019999,2]
[408347950,1773474646240,-500.0,0.00019999,2]
[408347952,1773474646249,-164.74675096,0.00019999,2]
[408347954,1773474646259,-415.52822655,0.00019999,2]
[408347955,1773474646268,-500.0,0.00019999,2]
[408347956,1773474646278,-500.0,0.00019999,2]
[408347957,1773474646287,-500.0,0.00019999,2]
[408347958,1773474646297,-500.0,0.00019999,2]
[408347959,1773474646307,-500.0,0.00019999,2]
[408347960,1773474646316,-500.0,0.00019999,2]
[408347961,1773474646325,-500.0,0.00019999,2]
[408347962,1773474646335,-500.0,0.00019999,2]
[408347963,1773474646345,-500.0,0.00019999,2]
[408347964,1773474646354,-500.0,0.00019999,2]
[408347965,1773474646364,-500.0,0.00019999,2]
[408347966,1773474646373,-3000.0,0.00019999,2]
[408347967,1773474646383,-5782.0,0.0002,2]
[408347968,1773474646392,-4626.0,0.0002,2]
[408347969,1773474646401,-146899.13344105,0.0002,2]
[408347970,1773474646411,-173.31973099,0.0002,2]
[408347971,1773474646420,-175667.44922813,0.0002,2]
[408347972,1773474646430,-1503.75323276,0.0002,2]
[408347973,1773474646439,-213.0,0.0002,2]
[408347974,1773474646449,-1000.0,0.0002,2]
[408347975,1773474646458,-200.87652176,0.0002,2]
[408347976,1773474646469,-1803397.04672311,0.0002,2]